lending/lending_fUSD_20250719
["ID","MTS","AMOUNT","RATE_DAILY","PERIOD"]
[373212419,1752907858721,-499.34,0.00020164,2]
[373212421,1752907858730,-480.0,0.00020164,2]
[373212423,1752907858739,-615.64,0.00020164,2]
[373212425,1752907858748,-480.0,0.00020164,2]
[373212427,1752907858757,-507.11,0.00020164,2]
[373212429,1752907858766,-1223.95,0.00020164,2]
[373212431,1752907858776,-798.17,0.00020164,2]
[373212433,1752907858785,-725.13,0.00020164,2]
[373212435,1752907858795,-1220.62,0.00020164,2]
[373212437,1752907858804,-480.0,0.00020164,2]
[373212439,1752907858813,-561.57,0.00020164,2]
[373212441,1752907858823,-965.98,0.00020164,2]
[373212443,1752907858832,-480.0,0.00020164,2]
[373212445,1752907858841,-7391.1,0.00020164,2]
[373212447,1752907858851,-996.17,0.00020164,2]
[373212449,1752907858860,-435.81718459,0.00020164,2]
[373212451,1752907858870,-875.35,0.00020164,2]
[373212453,1752907858879,-480.0,0.00020164,2]
[373212455,1752907858888,-480.0,0.00020164,2]
[373212457,1752907858897,-2076.63,0.00020164,2]
[373212459,1752907858907,-2505.63,0.00020178,2]
[373212462,1752907858916,-150.0,0.00020178,2]
[373212464,1752907858926,-1000.0,0.00020194,2]
[373212466,1752907858935,-1000.0,0.00020194,2]
[373212468,1752907858945,-250.0,0.00020195,2]
[373212469,1752907858953,-674.0,0.00020195,2]
[373212471,1752907858963,-312.0,0.00020195,2]
[373212473,1752907858972,-2689.0,0.00020195,2]
[373212475,1752907858981,-300.0,0.00020195,2]
[373212477,1752907858990,-150.0,0.00020196,2]
[373212479,1752907859000,-150.0,0.00020196,2]
[373212481,1752907859009,-250.0,0.00020196,2]
[373212483,1752907859019,-151.87989716,0.00020196,2]
[373212486,1752907859028,-297.5247851,0.00020196,2]
[373212488,1752907859037,-250.0,0.00020196,2]
[373212489,1752907859046,-150.0,0.00020196,2]
[373212491,1752907859055,-500.0,0.00020196,2]
[373212493,1752907859064,-165.47772205,0.00020196,2]
[373212496,1752907859074,-215.09622816,0.00020196,2]
[373212498,1752907859087,-150.0,0.00020196,2]
[373212500,1752907859096,-1083.0,0.000202,2]
[373212502,1752907859105,-5000.0,0.000202,2]
[373212504,1752907859114,-2000.0,0.000202,2]
[373212506,1752907859124,-509.02389227,0.00020224,2]
[373212508,1752907859134,-1000.0,0.00020235,2]
[373212510,1752907859143,-1000.0,0.00020237,2]
[373212512,1752907859152,-1001.46759398,0.00020251,2]
[373212514,1752907859161,-1201.35,0.00020273,2]
[373212516,1752907859170,-480.0,0.00020273,2]
[373212518,1752907859181,-488.27584309,0.00020273,2]
[373212520,1752907859191,-480.0,0.00020273,2]
[373212522,1752907859201,-654.73,0.00020273,2]
[373212524,1752907859211,-480.0,0.00020273,2]
[373212526,1752907859221,-480.0,0.00020273,2]
[373212538,1752907859340,-480.0,0.00020273,2]
[373212540,1752907859349,-480.0,0.00020273,2]
[373212542,1752907859359,-597.85,0.00020273,2]
[373212544,1752907859368,-562.6,0.00020273,2]
[373212547,1752907859378,-494.6,0.00020273,2]
[373212549,1752907859387,-480.0,0.00020273,2]
[373212551,1752907859397,-614.38,0.00020273,2]
[373212552,1752907859408,-801.31,0.00020273,2]
[373212554,1752907859417,-480.0,0.00020273,2]
[373212556,1752907859427,-480.0,0.00020273,2]
[373212558,1752907859436,-565.24,0.00020273,2]
[373212561,1752907859447,-480.0,0.00020273,2]
[373212563,1752907859457,-480.0,0.00020273,2]
[373212565,1752907859466,-1259.57,0.00020273,2]
[373212567,1752907859475,-480.0,0.00020273,2]
[373212569,1752907859485,-480.0,0.00020273,2]
[373212571,1752907859494,-921.82,0.00020273,2]
[373212573,1752907859504,-480.0,0.00020273,2]
[373212575,1752907859513,-480.0,0.00020273,2]
[373212577,1752907859523,-480.0,0.00020273,2]
[373212579,1752907859532,-480.0,0.00020273,2]
[373212581,1752907859542,-573.09,0.00020273,2]
[373212583,1752907859552,-1365.62,0.00020273,2]
[373212585,1752907859561,-577.37,0.00020273,2]
[373212587,1752907859571,-827.19,0.00020273,2]
[373212589,1752907859580,-581.07,0.00020273,2]
[373212591,1752907859589,-4441.88,0.00020273,2]
[373212593,1752907859599,-480.0,0.00020273,2]
[373212595,1752907859608,-637.96,0.00020273,2]
[373212597,1752907859618,-584.34,0.00020273,2]
[373212599,1752907859627,-480.0,0.00020273,2]
[373212601,1752907859636,-566.64,0.00020273,2]
[373212603,1752907859646,-176.88546416,0.00020273,2]
[373212605,1752907859655,-897.36,0.00020273,2]
[373212607,1752907859664,-791.99,0.00020273,2]
[373212609,1752907859674,-480.0,0.00020273,2]
[373212611,1752907859683,-1259.05,0.00020273,2]
[373212612,1752907859693,-480.0,0.00020273,2]
[373212615,1752907859703,-1164.26,0.00020273,2]
[373212617,1752907859712,-480.0,0.00020273,2]
[373212619,1752907859722,-1795.43,0.00020273,2]
[373212620,1752907859731,-480.0,0.00020273,2]
[373212621,1752907859741,-480.0,0.00020273,2]
[373212622,1752907859750,-480.0,0.00020273,2]
[373212623,1752907859760,-669.7,0.00020273,2]
[373212624,1752907859769,-540.38,0.00020273,2]
[373212625,1752907859778,-1011.37,0.00020273,2]
[373212626,1752907859788,-480.0,0.00020273,2]
[373212627,1752907859797,-480.0,0.00020273,2]
[373212628,1752907859806,-480.0,0.00020273,2]
[373212629,1752907859816,-1288.17,0.00020273,2]
[373212631,1752907859826,-632.89,0.00020273,2]
[373212633,1752907859836,-835.27,0.00020273,2]
[373212635,1752907859845,-631.07,0.00020273,2]
[373212637,1752907859855,-480.0,0.00020273,2]
[373212639,1752907859864,-536.6,0.00020273,2]
[373212641,1752907859874,-480.0,0.00020273,2]
[373212643,1752907859883,-480.0,0.00020273,2]
[373212645,1752907859893,-480.0,0.00020273,2]
[373212647,1752907859902,-571.22,0.00020273,2]
[373212649,1752907859913,-499.34,0.00020273,2]
[373212651,1752907859922,-480.0,0.00020273,2]
[373212653,1752907859932,-480.0,0.00020273,2]
[373212655,1752907859944,-615.64,0.00020273,2]
[373212657,1752907859954,-480.0,0.00020273,2]
[373212659,1752907859964,-507.11,0.00020273,2]
[373212661,1752907859973,-1223.95,0.00020273,2]
[373212663,1752907859983,-798.17,0.00020273,2]
[373212665,1752907859993,-725.13,0.00020273,2]
[373212667,1752907860004,-1220.62,0.00020273,2]
[373212669,1752907860013,-480.0,0.00020273,2]
[373212671,1752907860023,-561.57,0.00020273,2]
[373212673,1752907860032,-965.98,0.00020273,2]
[373212675,1752907860043,-480.0,0.00020273,2]
[373212677,1752907860054,-7391.1,0.00020273,2]
[373212679,1752907860063,-996.17,0.00020273,2]
[373212681,1752907860074,-875.35,0.00020273,2]
[373212683,1752907860084,-480.0,0.00020273,2]
[373212685,1752907860093,-480.0,0.00020273,2]
[373212687,1752907860102,-200.0,0.000203,2]
[373212689,1752907860111,-314.7242244,0.000203,2]
[373212691,1752907860120,-423.0,0.0002034,2]
[373212693,1752907860130,-206.0,0.0002035,2]
[373212695,1752907860139,-2505.62,0.0002038,2]
[373212697,1752907860148,-1201.35,0.00020383,2]
[373212699,1752907860158,-208.24419002,0.00020383,2]
[373212701,1752907860168,-480.0,0.00020383,2]
[373212702,1752907860178,-654.73,0.00020383,2]
[373212704,1752907860187,-480.0,0.00020383,2]
[373212706,1752907860197,-480.0,0.00020383,2]
[373212708,1752907860207,-480.0,0.00020383,2]
[373212710,1752907860217,-538.50177861,0.00020383,2]
[373212712,1752907860228,-597.85,0.00020383,2]
[373212714,1752907860238,-562.6,0.00020383,2]
[373212716,1752907860247,-494.6,0.00020383,2]
[373212718,1752907860257,-480.0,0.00020383,2]
[373212720,1752907860267,-801.31,0.00020383,2]
[373212722,1752907860276,-614.38,0.00020383,2]
[373212724,1752907860286,-480.0,0.00020383,2]
[373212726,1752907860295,-480.0,0.00020383,2]
[373212728,1752907860306,-565.24,0.00020383,2]
[373212730,1752907860316,-480.0,0.00020383,2]
[373212732,1752907860326,-262.32200189,0.00020383,2]
[373212734,1752907860336,-1259.57,0.00020383,2]
[373212736,1752907860346,-480.0,0.00020383,2]
[373212738,1752907860356,-480.0,0.00020383,2]
[373212740,1752907860365,-921.82,0.00020383,2]
[373212742,1752907860375,-480.0,0.00020383,2]
[373212744,1752907860385,-480.0,0.00020383,2]
[373212746,1752907860395,-480.0,0.00020383,2]
[373212748,1752907860405,-480.0,0.00020383,2]
[373212750,1752907860415,-573.09,0.00020383,2]
[373212752,1752907860425,-1365.62,0.00020383,2]
[373212754,1752907860435,-577.37,0.00020383,2]
[373212756,1752907860444,-827.19,0.00020383,2]
[373212758,1752907860454,-581.07,0.00020383,2]
[373212760,1752907860464,-4441.88,0.00020383,2]
[373212762,1752907860474,-480.0,0.00020383,2]
[373212764,1752907860483,-637.96,0.00020383,2]
[373212766,1752907860494,-584.34,0.00020383,2]
[373212768,1752907860504,-480.0,0.00020383,2]
[373212770,1752907860513,-566.64,0.00020383,2]
[373212772,1752907860523,-897.36,0.00020383,2]
[373212774,1752907860532,-791.99,0.00020383,2]
[373212776,1752907860542,-1259.05,0.00020383,2]
[373212778,1752907860552,-480.0,0.00020383,2]
[373212780,1752907860561,-480.0,0.00020383,2]
[373212782,1752907860571,-1164.26,0.00020383,2]
[373212784,1752907860581,-480.0,0.00020383,2]
[373212786,1752907860590,-1795.43,0.00020383,2]
[373212788,1752907860600,-480.0,0.00020383,2]
[373212790,1752907860610,-480.0,0.00020383,2]
[373212792,1752907860619,-480.0,0.00020383,2]
[373212794,1752907860629,-669.7,0.00020383,2]
[373212796,1752907860639,-540.38,0.00020383,2]
[373212798,1752907860649,-1011.37,0.00020383,2]
[373212800,1752907860659,-480.0,0.00020383,2]
[373212802,1752907860668,-480.0,0.00020383,2]
[373212804,1752907860678,-480.0,0.00020383,2]
[373212806,1752907860687,-1288.17,0.00020383,2]
[373212808,1752907860697,-632.89,0.00020383,2]
[373212810,1752907860707,-835.27,0.00020383,2]
[373212812,1752907860717,-631.07,0.00020383,2]
[373212814,1752907860726,-480.0,0.00020383,2]
[373212816,1752907860735,-536.6,0.00020383,2]
[373212818,1752907860751,-480.0,0.00020383,2]
[373212820,1752907860769,-480.0,0.00020383,2]
[373212822,1752907860778,-480.0,0.00020383,2]
[373212824,1752907860788,-571.22,0.00020383,2]
[373212826,1752907860797,-499.34,0.00020383,2]
[373212828,1752907860808,-480.0,0.00020383,2]
[373212830,1752907860818,-480.0,0.00020383,2]
[373212832,1752907860827,-615.64,0.00020383,2]
[373212834,1752907860838,-480.0,0.00020383,2]
[373212836,1752907860847,-507.11,0.00020383,2]
[373212838,1752907860856,-1223.95,0.00020383,2]
[373212840,1752907860866,-798.17,0.00020383,2]
[373212842,1752907860875,-725.13,0.00020383,2]
[373212844,1752907860884,-1220.62,0.00020383,2]
[373212846,1752907860895,-480.0,0.00020383,2]
[373212848,1752907860905,-965.98,0.00020383,2]
[373212850,1752907860914,-561.57,0.00020383,2]
[373212852,1752907860924,-480.0,0.00020383,2]
[373212854,1752907860933,-7391.1,0.00020383,2]
[373212856,1752907860943,-996.17,0.00020383,2]
[373212858,1752907860953,-875.35,0.00020383,2]
[373212860,1752907860962,-480.0,0.00020383,2]
[373212862,1752907860971,-480.0,0.00020383,2]
[373212864,1752907860980,-321.65,0.00020391,2]
[373212866,1752907860990,-314.7242244,0.000204,2]
[373212868,1752907861001,-2000.0,0.000204,2]
[373212870,1752907861011,-167.21,0.00020407,2]
[373212871,1752907861020,-500.0,0.00020421,2]
[373212874,1752907861030,-674.0,0.00020469,2]
[373212875,1752907861039,-375.0,0.00020469,2]
[373212877,1752907861049,-2689.0,0.00020469,2]
[373212879,1752907861058,-250.0,0.0002047,2]
[373212882,1752907861068,-250.0,0.0002047,2]
[373212884,1752907861078,-204.41477326,0.0002047,2]
[373212885,1752907861088,-500.0,0.0002047,2]
[373212887,1752907861098,-200.0,0.0002047,2]
[373212889,1752907861107,-1745.61598871,0.0002049,2]
[373212891,1752907861116,-1201.35,0.00020493,2]
[373212893,1752907861126,-480.0,0.00020493,2]
[373212895,1752907861135,-654.73,0.00020493,2]
[373212897,1752907861144,-184.82000103,0.00020493,2]
[373212899,1752907861153,-480.0,0.00020493,2]
[373212901,1752907861162,-480.0,0.00020493,2]
[373212903,1752907861171,-597.85,0.00020493,2]
[373212905,1752907861181,-562.6,0.00020493,2]
[373212907,1752907861190,-494.6,0.00020493,2]
[373212909,1752907861199,-480.0,0.00020493,2]
[373212911,1752907861208,-801.31,0.00020493,2]
[373212913,1752907861218,-614.38,0.00020493,2]
[373212915,1752907861230,-480.0,0.00020493,2]
[373212917,1752907861240,-565.24,0.00020493,2]
[373212919,1752907861249,-480.0,0.00020493,2]
[373212921,1752907861260,-1259.57,0.00020493,2]
[373212923,1752907861270,-480.0,0.00020493,2]
[373212925,1752907861280,-480.0,0.00020493,2]
[373212927,1752907861289,-921.82,0.00020493,2]
[373212929,1752907861299,-242.51809797,0.00020493,2]
[373212931,1752907861310,-480.0,0.00020493,2]
[373212933,1752907861320,-480.0,0.00020493,2]
[373212935,1752907861329,-573.09,0.00020493,2]
[373212937,1752907861339,-480.0,0.00020493,2]
[373212939,1752907861348,-1365.62,0.00020493,2]
[373212941,1752907861358,-577.37,0.00020493,2]
[373212943,1752907861367,-827.19,0.00020493,2]
[373212945,1752907861376,-581.07,0.00020493,2]
[373212947,1752907861386,-4441.88,0.00020493,2]
[373212949,1752907861395,-480.0,0.00020493,2]
[373212951,1752907861405,-637.96,0.00020493,2]
[373212953,1752907861414,-584.34,0.00020493,2]
[373212955,1752907861423,-480.0,0.00020493,2]
[373212957,1752907861433,-566.64,0.00020493,2]
[373212959,1752907861442,-897.36,0.00020493,2]
[373212961,1752907861452,-791.99,0.00020493,2]
[373212980,1752907861461,-1259.05,0.00020493,2]
[373212986,1752907861755,-480.0,0.00020493,2]
[373212988,1752907861765,-480.0,0.00020493,2]
[373212990,1752907861775,-151.74817791,0.00020493,2]
[373212992,1752907861784,-1795.43,0.00020493,2]
[373212994,1752907861794,-480.0,0.00020493,2]
[373212996,1752907861804,-1164.26,0.00020493,2]
[373212998,1752907861814,-480.0,0.00020493,2]
[373213000,1752907861824,-480.0,0.00020493,2]
[373213002,1752907861834,-669.7,0.00020493,2]
[373213004,1752907861843,-540.38,0.00020493,2]
[373213006,1752907861853,-1011.37,0.00020493,2]
[373213008,1752907861864,-480.0,0.00020493,2]
[373213010,1752907861873,-480.0,0.00020493,2]
[373213012,1752907861883,-480.0,0.00020493,2]
[373213014,1752907861892,-1288.17,0.00020493,2]
[373213016,1752907861901,-632.89,0.00020493,2]
[373213018,1752907861911,-835.27,0.00020493,2]
[373213020,1752907861920,-631.07,0.00020493,2]
[373213022,1752907861930,-480.0,0.00020493,2]
[373213024,1752907861939,-536.6,0.00020493,2]
[373213026,1752907861949,-480.0,0.00020493,2]
[373213028,1752907861959,-480.0,0.00020493,2]
[373213030,1752907861969,-480.0,0.00020493,2]
[373213032,1752907861978,-571.22,0.00020493,2]
[373213034,1752907861988,-480.0,0.00020493,2]
[373213035,1752907861998,-499.34,0.00020493,2]
[373213037,1752907862010,-480.0,0.00020493,2]
[373213039,1752907862019,-615.64,0.00020493,2]
[373213041,1752907862031,-480.0,0.00020493,2]
[373213043,1752907862040,-507.11,0.00020493,2]
[373213046,1752907862050,-1223.95,0.00020493,2]
[373213047,1752907862060,-798.17,0.00020493,2]
[373213049,1752907862070,-725.13,0.00020493,2]
[373213051,1752907862080,-1220.62,0.00020493,2]
[373213053,1752907862092,-480.0,0.00020493,2]
[373213055,1752907862103,-965.98,0.00020493,2]
[373213057,1752907862115,-480.0,0.00020493,2]
[373213059,1752907862125,-7391.1,0.00020493,2]
[373213061,1752907862136,-561.57,0.00020493,2]
[373213063,1752907862147,-996.17,0.00020493,2]
[373213065,1752907862156,-875.35,0.00020493,2]
[373213067,1752907862167,-480.0,0.00020493,2]
[373213069,1752907862179,-172.21759999,0.00020493,2]
[373213071,1752907862188,-2415.09,0.000205,2]
[373213073,1752907862197,-314.7242244,0.000205,2]
[373213076,1752907862209,-150.0,0.00020511,2]
[373213078,1752907862219,-2007.84,0.00020558,2]
[373213079,1752907862234,-8807.21050536,0.00020559,2]
[373213081,1752907862244,-423.0,0.0002058,2]
[373213083,1752907862255,-206.0,0.0002059,2]
[373213085,1752907862264,-2000.0,0.000206,2]
[373213087,1752907862274,-210.6,0.000206,2]
[373213089,1752907862284,-210.6,0.000206,2]
[373213091,1752907862293,-2415.09,0.000206,2]
[373213093,1752907862305,-314.7242244,0.000206,2]
[373213095,1752907862315,-423.0,0.00020602,2]
[373213097,1752907862324,-423.0,0.00020602,2]
[373213099,1752907862334,-423.0,0.00020602,2]
[373213101,1752907862343,-423.0,0.00020602,2]
[373213103,1752907862353,-423.0,0.00020602,2]
[373213105,1752907862362,-423.0,0.00020602,2]
[373213107,1752907862371,-423.0,0.00020602,2]
[373213109,1752907862381,-423.0,0.00020602,2]
[373213111,1752907862391,-423.0,0.00020602,2]
[373213113,1752907862400,-423.0,0.00020602,2]
[373213115,1752907862409,-206.0,0.00020602,2]
[373213117,1752907862419,-206.0,0.00020602,2]
[373213119,1752907862428,-206.0,0.00020602,2]
[373213121,1752907862438,-206.0,0.00020602,2]
[373213123,1752907862447,-206.0,0.00020602,2]
[373213125,1752907862457,-206.0,0.00020602,2]
[373213127,1752907862466,-206.0,0.00020602,2]
[373213129,1752907862475,-206.0,0.00020602,2]
[373213131,1752907862485,-206.0,0.00020602,2]
[373213133,1752907862495,-206.0,0.00020602,2]
[373213135,1752907862505,-212.0,0.00020602,2]
[373213137,1752907862515,-212.0,0.00020602,2]
[373213139,1752907862524,-212.0,0.00020602,2]
[373213141,1752907862534,-212.0,0.00020602,2]
[373213143,1752907862544,-212.0,0.00020602,2]
[373213145,1752907862553,-212.0,0.00020602,2]
[373213147,1752907862563,-212.0,0.00020602,2]
[373213149,1752907862572,-212.0,0.00020602,2]
[373213151,1752907862582,-212.0,0.00020602,2]
[373213153,1752907862591,-1201.35,0.00020602,2]
[373213155,1752907862600,-480.0,0.00020602,2]
[373213157,1752907862610,-654.73,0.00020602,2]
[373213159,1752907862620,-480.0,0.00020602,2]
[373213161,1752907862629,-480.0,0.00020602,2]
[373213163,1752907862639,-597.85,0.00020602,2]
[373213165,1752907862648,-562.6,0.00020602,2]
[373213167,1752907862657,-494.6,0.00020602,2]
[373213169,1752907862667,-480.0,0.00020602,2]
[373213171,1752907862676,-614.38,0.00020602,2]
[373213173,1752907862686,-801.31,0.00020602,2]
[373213175,1752907862695,-480.0,0.00020602,2]
[373213177,1752907862705,-565.24,0.00020602,2]
[373213179,1752907862714,-480.0,0.00020602,2]
[373213181,1752907862724,-1259.57,0.00020602,2]
[373213183,1752907862734,-480.0,0.00020602,2]
[373213185,1752907862743,-480.0,0.00020602,2]
[373213187,1752907862753,-921.82,0.00020602,2]
[373213189,1752907862762,-480.0,0.00020602,2]
[373213191,1752907862772,-480.0,0.00020602,2]
[373213193,1752907862781,-573.09,0.00020602,2]
[373213195,1752907862790,-480.0,0.00020602,2]
[373213197,1752907862799,-1365.62,0.00020602,2]
[373213198,1752907862809,-577.37,0.00020602,2]
[373213200,1752907862818,-827.19,0.00020602,2]
[373213202,1752907862827,-581.07,0.00020602,2]
[373213205,1752907862837,-4441.88,0.00020602,2]
[373213206,1752907862846,-480.0,0.00020602,2]
[373213208,1752907862856,-637.96,0.00020602,2]
[373213210,1752907862866,-584.34,0.00020602,2]
[373213212,1752907862877,-515.44569788,0.00020602,2]
[373213215,1752907862886,-566.64,0.00020602,2]
[373213216,1752907862896,-897.36,0.00020602,2]
[373213218,1752907862906,-791.99,0.00020602,2]
[373213220,1752907862915,-1259.05,0.00020602,2]
[373213222,1752907862925,-211.91491574,0.00020602,2]
[373213224,1752907862934,-1795.43,0.00020602,2]
[373213226,1752907862944,-480.0,0.00020602,2]
[373213228,1752907862954,-480.0,0.00020602,2]
[373213230,1752907862963,-1164.26,0.00020602,2]
[373213232,1752907862972,-480.0,0.00020602,2]
[373213234,1752907862982,-480.0,0.00020602,2]
[373213236,1752907862991,-669.7,0.00020602,2]
[373213239,1752907863003,-540.38,0.00020602,2]
[373213241,1752907863013,-1011.37,0.00020602,2]
[373213243,1752907863023,-480.0,0.00020602,2]
[373213245,1752907863033,-480.0,0.00020602,2]
[373213246,1752907863044,-480.0,0.00020602,2]
[373213247,1752907863053,-632.89,0.00020602,2]
[373213248,1752907863062,-1288.17,0.00020602,2]
[373213249,1752907863072,-835.27,0.00020602,2]
[373213250,1752907863081,-631.07,0.00020602,2]
[373213251,1752907863091,-480.0,0.00020602,2]
[373213252,1752907863101,-536.6,0.00020602,2]
[373213253,1752907863111,-480.0,0.00020602,2]
[373213255,1752907863121,-480.0,0.00020602,2]
[373213256,1752907863130,-480.0,0.00020602,2]
[373213258,1752907863140,-571.22,0.00020602,2]
[373213260,1752907863150,-499.34,0.00020602,2]
[373213262,1752907863159,-480.0,0.00020602,2]
[373213264,1752907863168,-480.0,0.00020602,2]
[373213266,1752907863178,-615.64,0.00020602,2]
[373213268,1752907863188,-480.0,0.00020602,2]
[373213270,1752907863198,-507.11,0.00020602,2]
[373213272,1752907863207,-1223.95,0.00020602,2]
[373213274,1752907863216,-798.17,0.00020602,2]
[373213276,1752907863228,-725.13,0.00020602,2]
[373213278,1752907863239,-1220.62,0.00020602,2]
[373213280,1752907863250,-181.50363868,0.00020602,2]
[373213282,1752907863261,-965.98,0.00020602,2]
[373213284,1752907863271,-480.0,0.00020602,2]
[373213286,1752907863282,-7391.1,0.00020602,2]
[373213288,1752907863292,-561.57,0.00020602,2]
[373213290,1752907863303,-996.17,0.00020602,2]
[373213292,1752907863313,-875.35,0.00020602,2]
[373213294,1752907863324,-480.0,0.00020602,2]
[373213296,1752907863333,-150.0,0.00020612,2]
[373213298,1752907863343,-5000.0,0.0002062,2]
[373213300,1752907863352,-4214.94,0.00020625,2]
[373213302,1752907863362,-2000.0,0.00020628,3]
[373213304,1752907863372,-156.587,0.00020638,2]
[373213306,1752907863382,-150.0,0.00020641,2]
[373213308,1752907863392,-2501.21,0.00020655,2]
[373213310,1752907863402,-600.0,0.00020658,2]
[373213312,1752907863411,-21100.08358734,0.000207,2]
[373213314,1752907863421,-314.7242244,0.000207,2]
[373213316,1752907863431,-1201.35,0.00020712,2]
[373213318,1752907863441,-480.0,0.00020712,2]
[373213320,1752907863451,-654.73,0.00020712,2]
[373213322,1752907863461,-191.17827327,0.00020712,2]
[373213324,1752907863471,-480.0,0.00020712,2]
[373213326,1752907863481,-597.85,0.00020712,2]
[373213328,1752907863491,-562.6,0.00020712,2]
[373213330,1752907863500,-494.6,0.00020712,2]
[373213332,1752907863511,-480.0,0.00020712,2]
[373213334,1752907863521,-801.31,0.00020712,2]
[373213336,1752907863530,-614.38,0.00020712,2]
[373213338,1752907863540,-480.0,0.00020712,2]
[373213340,1752907863550,-565.24,0.00020712,2]
[373213342,1752907863559,-261.03457221,0.00020712,2]
[373213344,1752907863569,-480.0,0.00020712,2]
[373213346,1752907863579,-1259.57,0.00020712,2]
[373213348,1752907863588,-480.0,0.00020712,2]
[373213350,1752907863598,-921.82,0.00020712,2]
[373213352,1752907863608,-480.0,0.00020712,2]
[373213354,1752907863619,-480.0,0.00020712,2]
[373213356,1752907863629,-573.09,0.00020712,2]
[373213358,1752907863639,-365.78435307,0.00020712,2]
[373213360,1752907863649,-1365.62,0.00020712,2]
[373213362,1752907863659,-577.37,0.00020712,2]
[373213364,1752907863669,-827.19,0.00020712,2]
[373213366,1752907863678,-581.07,0.00020712,2]
[373213368,1752907863688,-4441.88,0.00020712,2]
[373213370,1752907863698,-403.28853115,0.00020712,2]
[373213372,1752907863708,-637.96,0.00020712,2]
[373213374,1752907863718,-584.34,0.00020712,2]
[373213376,1752907863728,-566.64,0.00020712,2]
[373213378,1752907863738,-897.36,0.00020712,2]
[373213380,1752907863748,-791.99,0.00020712,2]
[373213382,1752907863758,-1259.05,0.00020712,2]
[373213384,1752907863767,-480.0,0.00020712,2]
[373213386,1752907863777,-480.0,0.00020712,2]
[373213388,1752907863787,-1164.26,0.00020712,2]
[373213390,1752907863796,-1795.43,0.00020712,2]
[373213392,1752907863806,-202.06799665,0.00020712,2]
[373213394,1752907863818,-480.0,0.00020712,2]
[373213396,1752907863827,-669.7,0.00020712,2]
[373213398,1752907863837,-540.38,0.00020712,2]
[373213400,1752907863848,-1011.37,0.00020712,2]
[373213402,1752907863858,-480.0,0.00020712,2]
[373213404,1752907863867,-480.0,0.00020712,2]
[373213406,1752907863876,-480.0,0.00020712,2]
[373213408,1752907863885,-632.89,0.00020712,2]
[373213410,1752907863895,-1288.17,0.00020712,2]
[373213412,1752907863904,-835.27,0.00020712,2]
[373213414,1752907863914,-631.07,0.00020712,2]
[373213416,1752907863924,-399.22269011,0.00020712,2]
[373213418,1752907863934,-536.6,0.00020712,2]
[373213421,1752907863946,-480.0,0.00020712,2]
[373213422,1752907863956,-480.0,0.00020712,2]
[373213425,1752907863966,-480.0,0.00020712,2]
[373213426,1752907863975,-571.22,0.00020712,2]
[373213428,1752907863985,-499.34,0.00020712,2]